[Event "Kvibergspelen 2018"]
[Site "Prioritet Serneke Arena, Krutvagen 2, Gothenburg, Sweden"]
[Date "2018.04.20"]
[Round "2.7"]
[White "Heidenfors, Ronald"]
[Black "Seo, Jung Min"]
[Result "0-1"]
[TimeControl "15 minutes + 5 seconds per move from move one (Round 1 - 4) / 90 minutes + 30 seconds per move from move one (Round 5 - 8)"]
[BlackTitle "FM"]
[WhiteFideId "1724053"]
[BlackFideId "1734687"]
[WhiteElo "2009"]
[BlackElo "2349"]

1. e4 {[%clk 00:15:07]} {[%emt 00:00:02]} c5 {[%clk 00:15:10]} 2. Nf3 {[%clk
00:15:03]} {[%emt 00:00:10]} Nc6 {[%clk 00:15:14]} {[%emt 00:00:01]} 3. d4
{[%clk 00:14:45]} {[%emt 00:00:22]} cxd4 {[%clk 00:15:18]} {[%emt 00:00:02]} 4.
Nxd4 {[%clk 00:14:43]} {[%emt 00:00:06]} Nf6 {[%clk 00:15:20]} {[%emt
00:00:03]} 5. Nc3 {[%clk 00:14:28]} {[%emt 00:00:19]} d6 {[%clk 00:15:24]}
{[%emt 00:00:01]} 6. Be2 {[%clk 00:12:57]} {[%emt 00:01:36]} g6 {[%clk
00:15:11]} {[%emt 00:00:18]} 7. O-O {[%clk 00:11:31]} {[%emt 00:01:31]} Bg7
{[%clk 00:15:14]} {[%emt 00:00:02]} 8. Nb3 {[%clk 00:10:40]} {[%emt 00:00:56]}
O-O {[%clk 00:15:16]} {[%emt 00:00:04]} 9. Bg5 {[%clk 00:10:40]} {[%emt
00:00:04]} Be6 {[%clk 00:15:15]} {[%emt 00:00:06]} 10. f4 {[%clk 00:10:02]}
{[%emt 00:00:42]} a5 {[%clk 00:15:18]} {[%emt 00:00:02]} 11. a4 {[%clk
00:09:10]} {[%emt 00:00:57]} Nb4 {[%clk 00:15:22]} {[%emt 00:00:02]} 12. Bf3
{[%clk 00:08:37]} {[%emt 00:00:38]} Nxc2 {[%clk 00:14:21]} {[%emt 00:01:06]} 13.
Qxc2 {[%clk 00:06:16]} {[%emt 00:02:25]} Qb6+ {[%clk 00:14:26]} {[%emt
00:00:01]} 14. Qf2 {[%clk 00:06:18]} {[%emt 00:00:03]} Qxf2+ {[%clk 00:13:35]}
{[%emt 00:00:56]} 15. Rxf2 {[%clk 00:05:09]} {[%emt 00:01:14]} Bxb3 {[%clk
00:13:38]} {[%emt 00:00:02]} 16. e5 {[%clk 00:04:10]} {[%emt 00:01:04]} dxe5
{[%clk 00:13:42]} {[%emt 00:00:01]} 17. fxe5 {[%clk 00:03:41]} {[%emt
00:00:34]} Nd7 {[%clk 00:13:46]} 18. Bxe7 {[%clk 00:03:21]} {[%emt 00:00:25]}
Rfe8 {[%clk 00:13:38]} {[%emt 00:00:13]} 19. Bd6 {[%clk 00:03:25]} {[%emt
00:00:02]} Nxe5 {[%clk 00:13:11]} {[%emt 00:00:32]} 20. Bxb7 {[%clk 00:01:26]}
{[%emt 00:02:04]} Rad8 {[%clk 00:12:59]} {[%emt 00:00:17]} 21. Bxe5 {[%clk
00:01:25]} {[%emt 00:00:06]} Bxe5 {[%clk 00:13:01]} {[%emt 00:00:02]} 22. Nb5
{[%clk 00:01:30]} Bc4 {[%clk 00:12:14]} {[%emt 00:00:51]} 23. Rc2 {[%clk
00:00:37]} {[%emt 00:00:58]} Bd3 {[%clk 00:12:12]} {[%emt 00:00:07]} 24. Rd2
{[%clk 00:00:14]} {[%emt 00:00:29]} Bf4 {[%clk 00:11:58]} {[%emt 00:00:19]} 25.
Rdd1 {[%clk 00:00:18]} Bc2 {[%clk 00:11:35]} {[%emt 00:00:28]} 26. Re1 {[%clk
00:00:21]} {[%emt 00:00:02]} Be5 {[%clk 00:10:42]} {[%emt 00:00:58]} 27. Bc6
{[%clk 00:00:14]} {[%emt 00:00:12]} Re6 {[%clk 00:09:37]} {[%emt 00:01:11]} 28.
Bf3 {[%clk 00:00:18]} {[%emt 00:00:01]} Bxb2 {[%clk 00:09:20]} {[%emt
00:00:22]} 29. Rxe6 {[%clk 00:00:21]} {[%emt 00:00:01]} Bxa1 {[%clk 00:09:15]}
{[%emt 00:00:10]} 30. Re2 {[%clk 00:00:24]} {[%emt 00:00:02]} Bxa4 {[%clk
00:09:02]} {[%emt 00:00:19]} 31. Ra2 {[%clk 00:00:17]} {[%emt 00:00:11]} Bxb5
{[%clk 00:08:49]} {[%emt 00:00:18]} 32. Rxa1 {[%clk 00:00:21]} a4 {[%clk
00:08:50]} {[%emt 00:00:04]} 33. Ra3 {[%clk 00:00:20]} {[%emt 00:00:06]} Rd4
{[%clk 00:08:51]} {[%emt 00:00:04]} 34. Kf2 {[%clk 00:00:23]} {[%emt 00:00:02]}
Rb4 {[%clk 00:08:55]} {[%emt 00:00:01]} 35. Bd1 {[%clk 00:00:26]} {[%emt
00:00:02]} Rb2+ {[%clk 00:08:57]} {[%emt 00:00:03]} 36. Kg3 {[%clk 00:00:28]}
{[%emt 00:00:02]} Bc6 {[%clk 00:07:28]} {[%emt 00:01:34]} 37. Bf3 {[%clk
00:00:14]} {[%emt 00:00:18]} Bxf3 {[%clk 00:07:25]} {[%emt 00:00:09]} 38. gxf3
{[%clk 00:00:17]} {[%emt 00:00:02]} Rb4 {[%clk 00:07:29]} 39. Rc3 {[%clk
00:00:21]} {[%emt 00:00:02]} h5 {[%clk 00:07:29]} {[%emt 00:00:05]} 40. Rc8+
{[%clk 00:00:24]} {[%emt 00:00:02]} Kg7 {[%clk 00:07:33]} 41. Ra8 {[%clk
00:00:28]} g5 {[%clk 00:07:31]} {[%emt 00:00:07]} 42. Ra6 {[%clk 00:00:29]}
{[%emt 00:00:04]} f6 {[%clk 00:07:32]} {[%emt 00:00:05]} 43. Ra7+ {[%clk
00:00:32]} {[%emt 00:00:02]} Kg6 {[%clk 00:07:36]} {[%emt 00:00:01]} 44. Ra5
{[%clk 00:00:37]} h4+ {[%clk 00:07:39]} {[%emt 00:00:03]} 45. Kh3 {[%clk
00:00:38]} {[%emt 00:00:03]} Rb3 {[%clk 00:07:27]} {[%emt 00:00:17]} 46. Kg4
{[%clk 00:00:37]} {[%emt 00:00:05]} f5+ {[%clk 00:07:00]} {[%emt 00:00:33]} 0-1

[Event "Kvibergspelen 2018"]
[Site "Prioritet Serneke Arena, Krutvagen 2, Gothenburg, Sweden"]
[Date "2018.04.20"]
[Round "2.8"]
[White "Al Hadarani, Hatim"]
[Black "Jonsson, Krister"]
[Result "0-1"]
[TimeControl "15 minutes + 5 seconds per move from move one (Round 1 - 4) / 90 minutes + 30 seconds per move from move one (Round 5 - 8)"]
[WhiteTitle "FM"]
[WhiteFideId "9400273"]
[BlackFideId "1708023"]
[WhiteElo "2334"]
[BlackElo "2047"]

1. d4 {[%clk 00:15:07]} {[%emt 00:00:05]} d5 {[%clk 00:15:11]} {[%emt
00:00:03]} 2. Bg5 {[%clk 00:15:10]} {[%emt 00:00:01]} g6 {[%clk 00:15:02]}
{[%emt 00:00:14]} 3. Nc3 {[%clk 00:14:50]} {[%emt 00:00:25]} Bg7 {[%clk
00:14:57]} {[%emt 00:00:10]} 4. Qd2 {[%clk 00:14:38]} {[%emt 00:00:16]} Nf6
{[%clk 00:14:44]} {[%emt 00:00:18]} 5. Bh6 {[%clk 00:14:30]} {[%emt 00:00:12]}
Bxh6 {[%clk 00:13:38]} {[%emt 00:01:12]} 6. Qxh6 {[%clk 00:14:32]} {[%emt
00:00:03]} Bf5 {[%clk 00:13:41]} {[%emt 00:00:02]} 7. Qd2 {[%clk 00:13:49]}
{[%emt 00:00:48]} Nc6 {[%clk 00:13:10]} {[%emt 00:00:36]} 8. e3 {[%clk
00:13:20]} {[%emt 00:00:34]} Qd7 {[%clk 00:12:49]} {[%emt 00:00:26]} 9. Nf3
{[%clk 00:12:32]} {[%emt 00:00:53]} Rd8 {[%clk 00:11:56]} {[%emt 00:00:58]} 10.
Bb5 {[%clk 00:12:15]} {[%emt 00:00:21]} a6 {[%clk 00:11:31]} {[%emt 00:00:31]}
11. Ne5 {[%clk 00:11:57]} {[%emt 00:00:23]} Qd6 {[%clk 00:11:34]} {[%emt
00:00:03]} 12. Nxc6 {[%clk 00:10:21]} {[%emt 00:01:40]} bxc6 {[%clk 00:11:37]}
{[%emt 00:00:02]} 13. Bxa6 {[%clk 00:10:01]} {[%emt 00:00:25]} O-O {[%clk
00:11:29]} {[%emt 00:00:13]} 14. Bd3 {[%clk 00:09:49]} {[%emt 00:00:17]} Ne4
{[%clk 00:10:55]} {[%emt 00:00:39]} 15. Bxe4 {[%clk 00:09:41]} {[%emt
00:00:13]} Bxe4 {[%clk 00:10:33]} {[%emt 00:00:27]} 16. f3 {[%clk 00:08:16]}
{[%emt 00:01:30]} Bf5 {[%clk 00:10:36]} {[%emt 00:00:03]} 17. Na4 {[%clk
00:08:12]} {[%emt 00:00:09]} e5 {[%clk 00:10:18]} {[%emt 00:00:23]} 18. O-O
{[%clk 00:08:04]} {[%emt 00:00:12]} e4 {[%clk 00:08:53]} {[%emt 00:01:30]} 19.
f4 {[%clk 00:07:59]} {[%emt 00:00:10]} Ra8 {[%clk 00:08:30]} {[%emt 00:00:28]}
20. Nc5 {[%clk 00:07:56]} {[%emt 00:00:07]} Rfb8 {[%clk 00:08:27]} {[%emt
00:00:09]} 21. b3 {[%clk 00:07:29]} {[%emt 00:00:32]} Bc8 {[%clk 00:08:26]}
{[%emt 00:00:06]} 22. Kh1 {[%clk 00:07:17]} {[%emt 00:00:16]} Ba6 {[%clk
00:08:18]} {[%emt 00:00:13]} 23. Rg1 {[%clk 00:06:42]} {[%emt 00:00:39]} h5
{[%clk 00:08:07]} {[%emt 00:00:17]} 24. g4 {[%clk 00:05:36]} {[%emt 00:01:11]}
hxg4 {[%clk 00:06:00]} {[%emt 00:02:12]} 25. Rxg4 {[%clk 00:03:38]} {[%emt
00:02:03]} Kg7 {[%clk 00:05:57]} {[%emt 00:00:08]} 26. Nxa6 {[%clk 00:02:53]}
{[%emt 00:00:50]} Rxa6 {[%clk 00:05:58]} {[%emt 00:00:04]} 27. f5 {[%clk
00:01:57]} {[%emt 00:01:00]} Rh8 {[%clk 00:05:58]} {[%emt 00:00:05]} 28. Rf1
{[%clk 00:01:32]} {[%emt 00:00:29]} c5 {[%clk 00:03:26]} {[%emt 00:02:39]} 29.
Qf2 {[%clk 00:00:51]} {[%emt 00:00:45]} Qd7 {[%clk 00:02:53]} {[%emt 00:00:38]}
30. dxc5 {[%clk 00:00:16]} {[%emt 00:00:41]} Rh6 {[%clk 00:02:11]} {[%emt
00:00:46]} 31. f6+ {[%clk 00:00:12]} {[%emt 00:00:08]} Kh7 {[%clk 00:02:09]}
{[%emt 00:00:07]} 32. Rh4 {[%clk 00:00:13]} {[%emt 00:00:04]} Qf5 {[%clk
00:01:04]} {[%emt 00:01:11]} 33. Rxh6 {[%clk 00:00:13]} {[%emt 00:00:05]} Kxh6
{[%clk 00:01:05]} {[%emt 00:00:04]} 34. Qxf5 {[%clk 00:00:10]} {[%emt
00:00:09]} gxf5 {[%clk 00:01:08]} {[%emt 00:00:01]} 35. a4 {[%clk 00:00:12]}
{[%emt 00:00:02]} Kg5 {[%clk 00:01:01]} {[%emt 00:00:12]} 36. Ra1 {[%clk
00:00:07]} {[%emt 00:00:11]} d4 {[%clk 00:00:48]} {[%emt 00:00:17]} 37. b4
{[%emt 00:00:07]} dxe3 {[%emt 00:00:03]} 38. b5 {[%emt 00:00:04]} 0-1

[Event "Kvibergspelen 2018"]
[Site "Prioritet Serneke Arena, Krutvagen 2, Gothenburg, Sweden"]
[Date "2018.04.20"]
[Round "2.9"]
[White "Pantzar, Milton"]
[Black "Troberg Eskola, Love"]
[Result "1-0"]
[TimeControl "15 minutes + 5 seconds per move from move one (Round 1 - 4) / 90 minutes + 30 seconds per move from move one (Round 5 - 8)"]
[WhiteTitle "FM"]
[WhiteFideId "1721003"]
[BlackFideId "1724185"]
[WhiteElo "2295"]
[BlackElo "2045"]

1. e3 {[%clk 00:15:08]} {[%emt 00:00:02]} g6 {[%clk 00:15:03]} {[%emt
00:00:08]} 2. f4 {[%clk 00:15:04]} {[%emt 00:00:08]} Bg7 {[%clk 00:15:05]}
{[%emt 00:00:03]} 3. Nf3 {[%clk 00:15:07]} {[%emt 00:00:01]} c5 {[%clk
00:15:02]} {[%emt 00:00:09]} 4. Be2 {[%clk 00:14:18]} {[%emt 00:00:54]} Nc6
{[%clk 00:15:04]} {[%emt 00:00:03]} 5. O-O {[%clk 00:14:20]} {[%emt 00:00:02]}
Nf6 {[%clk 00:15:01]} {[%emt 00:00:08]} 6. d3 {[%clk 00:13:47]} {[%emt
00:00:38]} d5 {[%clk 00:15:04]} {[%emt 00:00:02]} 7. Qe1 {[%clk 00:13:37]}
{[%emt 00:00:16]} O-O {[%clk 00:14:57]} {[%emt 00:00:12]} 8. Nc3 {[%clk
00:12:20]} {[%emt 00:01:22]} d4 {[%clk 00:14:34]} {[%emt 00:00:29]} 9. Nd1
{[%clk 00:11:37]} {[%emt 00:00:48]} dxe3 {[%clk 00:14:30]} {[%emt 00:00:09]} 10.
Nxe3 {[%clk 00:11:39]} {[%emt 00:00:03]} Nd5 {[%clk 00:14:11]} {[%emt
00:00:24]} 11. Nc4 {[%clk 00:10:55]} {[%emt 00:00:50]} b5 {[%clk 00:12:41]}
{[%emt 00:01:35]} 12. Nce5 {[%clk 00:10:42]} {[%emt 00:00:18]} Bb7 {[%clk
00:12:12]} {[%emt 00:00:34]} 13. Nxc6 {[%clk 00:09:29]} {[%emt 00:01:19]} Bxc6
{[%clk 00:12:16]} {[%emt 00:00:01]} 14. Ne5 {[%clk 00:09:32]} {[%emt 00:00:02]}
Bb7 {[%clk 00:11:42]} {[%emt 00:00:40]} 15. Bf3 {[%clk 00:08:54]} {[%emt
00:00:42]} Qc7 {[%clk 00:10:50]} {[%emt 00:00:57]} 16. Bd2 {[%clk 00:08:38]}
{[%emt 00:00:21]} Nb6 {[%clk 00:10:13]} {[%emt 00:00:43]} 17. Bxb7 {[%clk
00:06:25]} {[%emt 00:02:18]} Qxb7 {[%clk 00:10:17]} {[%emt 00:00:01]} 18. Rb1
{[%clk 00:06:27]} {[%emt 00:00:03]} Qd5 {[%clk 00:09:56]} {[%emt 00:00:26]} 19.
Nf3 {[%clk 00:05:11]} {[%emt 00:01:20]} e6 {[%clk 00:09:25]} {[%emt 00:00:36]}
20. Bc3 {[%clk 00:04:29]} {[%emt 00:00:48]} Bxc3 {[%clk 00:09:00]} {[%emt
00:00:30]} 21. bxc3 {[%clk 00:04:32]} {[%emt 00:00:01]} Qxa2 {[%clk 00:07:44]}
{[%emt 00:01:22]} 22. Qf2 {[%clk 00:03:20]} {[%emt 00:01:17]} a6 {[%clk
00:06:48]} {[%emt 00:01:01]} 23. Ng5 {[%clk 00:02:45]} {[%emt 00:00:40]} h6
{[%clk 00:05:51]} {[%emt 00:01:03]} 24. Ne4 {[%clk 00:02:47]} {[%emt 00:00:02]}
Na4 {[%clk 00:05:34]} {[%emt 00:00:22]} 25. Ra1 {[%clk 00:02:45]} {[%emt
00:00:07]} 1-0

[Event "Kvibergspelen 2018"]
[Site "Prioritet Serneke Arena, Krutvagen 2, Gothenburg, Sweden"]
[Date "2018.04.20"]
[Round "2.10"]
[White "Petersson, Baldur Teodor"]
[Black "Kucuksari, Kaan"]
[Result "1/2-1/2"]
[TimeControl "15 minutes + 5 seconds per move from move one (Round 1 - 4) / 90 minutes + 30 seconds per move from move one (Round 5 - 8)"]
[WhiteTitle "CM"]
[BlackTitle "FM"]
[WhiteFideId "2309157"]
[BlackFideId "6380166"]
[WhiteElo "2003"]
[BlackElo "2251"]

1. e4 {[%clk 00:14:53]} {[%emt 00:00:16]} c5 {[%clk 00:15:08]} {[%emt
00:00:02]} 2. d3 {[%clk 00:14:51]} {[%emt 00:00:08]} e6 {[%clk 00:15:09]}
{[%emt 00:00:04]} 3. g3 {[%clk 00:14:50]} {[%emt 00:00:05]} d5 {[%clk
00:15:02]} {[%emt 00:00:12]} 4. Nd2 {[%clk 00:14:53]} {[%emt 00:00:02]} Nf6
{[%clk 00:15:03]} {[%emt 00:00:04]} 5. Bg2 {[%clk 00:14:57]} {[%emt 00:00:01]}
Nc6 {[%clk 00:15:06]} {[%emt 00:00:03]} 6. Ngf3 {[%clk 00:14:59]} {[%emt
00:00:03]} Be7 {[%clk 00:15:04]} {[%emt 00:00:07]} 7. O-O {[%clk 00:14:58]}
{[%emt 00:00:06]} O-O {[%clk 00:15:07]} {[%emt 00:00:03]} 8. Re1 {[%clk
00:15:01]} {[%emt 00:00:02]} Qc7 {[%clk 00:13:14]} {[%emt 00:01:58]} 9. e5
{[%clk 00:14:42]} {[%emt 00:00:23]} Nd7 {[%clk 00:13:17]} {[%emt 00:00:03]} 10.
Qe2 {[%clk 00:14:46]} {[%emt 00:00:02]} b5 {[%clk 00:13:14]} {[%emt 00:00:07]}
11. Nf1 {[%clk 00:14:43]} {[%emt 00:00:06]} Bb7 {[%clk 00:13:12]} {[%emt
00:00:08]} 12. Bf4 {[%clk 00:14:17]} {[%emt 00:00:31]} Rfc8 {[%clk 00:13:11]}
{[%emt 00:00:05]} 13. h4 {[%clk 00:13:53]} {[%emt 00:00:29]} Qd8 {[%clk
00:12:54]} {[%emt 00:00:23]} 14. Ne3 {[%clk 00:11:30]} {[%emt 00:02:28]} h6
{[%clk 00:12:01]} {[%emt 00:00:58]} 15. Ng4 {[%clk 00:11:01]} {[%emt 00:00:34]}
Bf8 {[%clk 00:11:52]} {[%emt 00:00:14]} 16. Qd2 {[%clk 00:10:45]} {[%emt
00:00:21]} Ne7 {[%clk 00:11:35]} {[%emt 00:00:22]} 17. h5 {[%clk 00:08:34]}
{[%emt 00:02:16]} Nf5 {[%clk 00:11:19]} {[%emt 00:00:22]} 18. Ngh2 {[%clk
00:08:20]} {[%emt 00:00:19]} d4 {[%clk 00:04:55]} {[%emt 00:06:29]} 19. g4
{[%clk 00:07:57]} {[%emt 00:00:28]} Ne7 {[%clk 00:04:53]} {[%emt 00:00:07]} 20.
g5 {[%clk 00:07:48]} {[%emt 00:00:13]} Nf5 {[%clk 00:03:36]} {[%emt 00:01:23]}
21. Bh3 {[%clk 00:06:13]} {[%emt 00:01:40]} hxg5 {[%clk 00:02:57]} {[%emt
00:00:43]} 22. Bxg5 {[%clk 00:04:37]} {[%emt 00:01:40]} Qe8 {[%clk 00:02:53]}
{[%emt 00:00:10]} 23. Qf4 {[%clk 00:04:05]} {[%emt 00:00:38]} Nb6 {[%clk
00:02:35]} {[%emt 00:00:23]} 24. Bxf5 {[%clk 00:03:54]} {[%emt 00:00:16]} Nd5
{[%clk 00:02:39]} {[%emt 00:00:01]} 25. Qg4 {[%clk 00:03:58]} {[%emt 00:00:01]}
exf5 {[%clk 00:02:39]} {[%emt 00:00:05]} 26. Qxf5 {[%clk 00:04:01]} {[%emt
00:00:02]} Rc6 {[%clk 00:02:37]} {[%emt 00:00:07]} 27. Ng4 {[%clk 00:03:34]}
{[%emt 00:00:31]} Ne7 {[%clk 00:01:27]} {[%emt 00:01:16]} 28. Bxe7 {[%clk
00:03:21]} {[%emt 00:00:18]} Bxe7 {[%clk 00:00:53]} {[%emt 00:00:39]} 29. e6
{[%clk 00:03:00]} {[%emt 00:00:25]} fxe6 {[%clk 00:00:24]} {[%emt 00:00:34]} 30.
Rxe6 {[%clk 00:03:04]} {[%emt 00:00:01]} Bc8 {[%clk 00:00:15]} {[%emt
00:00:14]} 31. Ng5 {[%clk 00:01:01]} {[%emt 00:02:08]} Qxh5 {[%clk 00:00:11]}
{[%emt 00:00:09]} 32. Qd5 {[%clk 00:00:21]} {[%emt 00:00:44]} Qxg5 {[%emt
00:00:13]} 33. Re5+ {[%clk 00:00:16]} {[%emt 00:00:07]} Be6 {[%clk 00:00:06]}
{[%emt 00:00:05]} 34. Rxg5 {[%clk 00:00:12]} {[%emt 00:00:10]} Bxd5 {[%emt
00:00:02]} 35. Rxd5 {[%clk 00:00:15]} {[%emt 00:00:01]} Rf8 {[%clk 00:00:10]}
{[%emt 00:00:04]} 36. Re1 {[%clk 00:00:15]} {[%emt 00:00:06]} Bd8 {[%clk
00:00:07]} {[%emt 00:00:08]} 37. Ne5 {[%clk 00:00:17]} {[%emt 00:00:03]} Rcf6
{[%clk 00:00:10]} {[%emt 00:00:02]} 38. Re2 {[%clk 00:00:11]} {[%emt 00:00:12]}
Rf5 {[%clk 00:00:08]} {[%emt 00:00:07]} 39. Rxc5 {[%clk 00:00:14]} {[%emt
00:00:02]} Bh4 {[%clk 00:00:11]} {[%emt 00:00:01]} 40. Nd7 {[%clk 00:00:11]}
{[%emt 00:00:09]} Bxf2+ {[%clk 00:00:14]} {[%emt 00:00:02]} 41. Rxf2 {[%clk
00:00:11]} {[%emt 00:00:06]} Rxf2 {[%clk 00:00:14]} {[%emt 00:00:05]} 42. Nxf8
Rxf8 {[%clk 00:00:17]} 43. Rxb5 {[%emt 00:00:01]} Rc8 {[%clk 00:00:21]} 44. c3
{[%clk 00:00:06]} {[%emt 00:00:18]} dxc3 {[%clk 00:00:24]} {[%emt 00:00:02]} 45.
bxc3 {[%clk 00:00:10]} Rxc3 {[%clk 00:00:28]} {[%emt 00:00:01]} 46. Ra5 {[%clk
00:00:14]} {[%emt 00:00:01]} Rc7 {[%clk 00:00:28]} {[%emt 00:00:03]} 47. Kg2
{[%clk 00:00:18]} {[%emt 00:00:03]} Kf7 {[%clk 00:00:32]} {[%emt 00:00:01]} 48.
Kf3 {[%clk 00:00:22]} {[%emt 00:00:01]} Ke6 {[%clk 00:00:35]} 49. Ke4 {[%clk
00:00:22]} {[%emt 00:00:05]} Kd6 {[%clk 00:00:33]} {[%emt 00:00:02]} 50. Ra6+
{[%clk 00:00:16]} {[%emt 00:00:17]} Kc5 {[%clk 00:00:34]} {[%emt 00:00:04]} 51.
d4+ {[%clk 00:00:20]} Kb5 {[%clk 00:00:34]} {[%emt 00:00:06]} 52. Rg6 {[%clk
00:00:21]} {[%emt 00:00:04]} a5 {[%clk 00:00:11]} {[%emt 00:00:29]} 53. d5
{[%clk 00:00:23]} {[%emt 00:00:02]} Kc5 {[%clk 00:00:13]} {[%emt 00:00:03]} 54.
Ke5 {[%clk 00:00:27]} {[%emt 00:00:02]} a4 {[%clk 00:00:15]} {[%emt 00:00:03]}
55. Ra6 {[%clk 00:00:22]} {[%emt 00:00:10]} Re7 {[%clk 00:00:13]} {[%emt
00:00:07]} 56. Re6 {[%clk 00:00:22]} {[%emt 00:00:04]} Rc7 {[%clk 00:00:16]}
{[%emt 00:00:01]} 57. Ra6 {[%clk 00:00:26]} {[%emt 00:00:02]} Re7 {[%clk
00:00:20]} {[%emt 00:00:02]} 58. Re6 {[%clk 00:00:30]} 1/2-1/2

[Event "Kvibergspelen 2018"]
[Site "Prioritet Serneke Arena, Krutvagen 2, Gothenburg, Sweden"]
[Date "2018.04.20"]
[Round "2.11"]
[White "Sorensen, Hampus"]
[Black "Fransson, Lennart"]
[Result "1-0"]
[TimeControl "15 minutes + 5 seconds per move from move one (Round 1 - 4) / 90 minutes + 30 seconds per move from move one (Round 5 - 8)"]
[WhiteFideId "8703884"]
[BlackFideId "1706756"]
[WhiteElo "2243"]
[BlackElo "2035"]

1. d4 {[%clk 00:15:06]} {[%emt 00:00:02]} Nf6 {[%clk 00:15:08]} {[%emt
00:00:03]} 2. c4 {[%clk 00:15:07]} {[%emt 00:00:04]} c5 {[%clk 00:15:11]}
{[%emt 00:00:02]} 3. d5 {[%clk 00:15:09]} {[%emt 00:00:03]} d6 {[%clk
00:15:14]} {[%emt 00:00:02]} 4. Nc3 {[%clk 00:15:11]} {[%emt 00:00:04]} g6
{[%clk 00:15:17]} {[%emt 00:00:02]} 5. e4 {[%clk 00:15:10]} {[%emt 00:00:05]}
Bg7 {[%clk 00:15:21]} {[%emt 00:00:01]} 6. Bd3 {[%clk 00:15:08]} {[%emt
00:00:07]} O-O {[%clk 00:15:21]} {[%emt 00:00:03]} 7. h3 {[%clk 00:15:11]}
{[%emt 00:00:04]} Na6 {[%clk 00:15:24]} {[%emt 00:00:02]} 8. Nf3 {[%clk
00:15:12]} {[%emt 00:00:03]} Bd7 {[%clk 00:15:28]} {[%emt 00:00:02]} 9. O-O
{[%clk 00:15:09]} {[%emt 00:00:07]} Nc7 {[%clk 00:15:31]} {[%emt 00:00:02]} 10.
a4 {[%clk 00:15:00]} {[%emt 00:00:14]} b6 {[%clk 00:15:35]} {[%emt 00:00:01]}
11. Re1 {[%clk 00:14:31]} {[%emt 00:00:34]} Rb8 {[%clk 00:15:34]} {[%emt
00:00:06]} 12. Bf4 {[%clk 00:13:31]} {[%emt 00:01:06]} a6 {[%clk 00:15:37]}
{[%emt 00:00:03]} 13. e5 {[%clk 00:13:05]} {[%emt 00:00:31]} Nfe8 {[%clk
00:15:39]} {[%emt 00:00:02]} 14. Qe2 {[%clk 00:12:28]} {[%emt 00:00:42]} Bc8
{[%clk 00:14:51]} {[%emt 00:00:51]} 15. Rab1 {[%clk 00:12:18]} {[%emt
00:00:16]} e6 {[%clk 00:14:44]} {[%emt 00:00:12]} 16. Rbd1 {[%clk 00:10:54]}
{[%emt 00:01:29]} exd5 {[%clk 00:14:34]} {[%emt 00:00:14]} 17. Nxd5 {[%clk
00:10:20]} {[%emt 00:00:39]} Nxd5 {[%clk 00:13:01]} {[%emt 00:01:38]} 18. cxd5
{[%clk 00:10:24]} {[%emt 00:00:02]} b5 {[%clk 00:12:08]} {[%emt 00:00:57]} 19.
axb5 {[%clk 00:10:16]} {[%emt 00:00:13]} axb5 {[%clk 00:12:12]} {[%emt
00:00:01]} 20. Bxb5 {[%clk 00:09:43]} {[%emt 00:00:38]} Nc7 {[%clk 00:12:01]}
{[%emt 00:00:16]} 21. Bc4 {[%clk 00:09:30]} {[%emt 00:00:18]} Re8 {[%clk
00:12:03]} {[%emt 00:00:03]} 22. exd6 {[%clk 00:08:07]} {[%emt 00:01:28]} 1-0